bitfinex/quotes_BTCUSD_20240818
["timestamp","ask_amount","ask_price","bid_price","bid_amount"]
[1723942870829,0.956802,59824.0,59823.0,0.54553713]
[1723942871229,1.057096,59824.0,59823.0,0.54553713]
[1723942873229,0.956802,59824.0,59823.0,0.73223713]
[1723942873998,1.057096,59824.0,59823.0,0.73223713]
[1723942874843,1.057096,59824.0,59823.0,0.14503713]
[1723942877442,0.863902,59824.0,59823.0,0.73223713]
[1723942877649,0.932802,59824.0,59823.0,0.73223713]
[1723942878885,0.955802,59824.0,59823.0,0.73223713]
[1723942879091,0.956802,59824.0,59823.0,0.73223713]
[1723942882079,0.955802,59824.0,59823.0,0.73223713]
[1723942882285,0.956802,59824.0,59823.0,0.73223713]
[1723942888158,0.956802,59824.0,59823.0,0.14503713]
[1723942889385,1.4257119,59824.0,59823.0,0.14503713]
[1723942889591,1.64855941,59824.0,59823.0,0.14503713]
[1723942889792,1.64855941,59824.0,59823.0,0.13954122]
[1723942890201,1.64855941,59824.0,59823.0,0.08602321]
[1723942890416,1.74885341,59824.0,59823.0,0.08602321]
[1723942891317,1.74885341,59824.0,59823.0,0.07102321]
[1723942898239,1.75176887,59824.0,59823.0,0.07102321]
[1723942899903,1.74885341,59824.0,59823.0,0.07102321]
[1723942900345,1.7592204,59824.0,59823.0,0.05584247]
[1723942904858,1.7592204,59824.0,59823.0,0.04184247]
[1723942905284,1.5660264,59824.0,59823.0,0.04184247]
[1723942905493,1.4611264,59824.0,59823.0,0.04184247]
[1723942905663,1.0694264,59824.0,59823.0,0.0469435]
[1723942906175,1.1697204,59824.0,59823.0,0.01604255]
[1723942906344,0.281152,59818.0,59817.0,0.3969]
[1723942906545,0.53703321,59818.0,59817.0,0.3969]
[1723942906864,0.93824921,59818.0,59817.0,0.3969]
[1723942907023,0.9644902,59818.0,59817.0,0.3969]
[1723942907208,0.452381,59816.0,59815.0,0.5772]
[1723942907415,0.70040239,59816.0,59815.0,0.5772]
[1723942907956,0.80070939,59816.0,59815.0,0.5772]
[1723942909161,0.552716,59813.0,59812.0,0.1812075]
[1723942909357,0.80073739,59813.0,59812.0,0.0009075]
[1723942909605,0.481792,59810.0,59809.0,0.1803]
[1723942909758,0.72981339,59810.0,59809.0,0.5772]
[1723942909957,1.03076439,59810.0,59809.0,0.5772]
[1723942911777,1.04120564,59810.0,59809.0,0.5772]
[1723942913023,1.10824764,59810.0,59809.0,0.5772]
[1723942914943,1.10824764,59810.0,59809.0,0.5781075]
[1723942915272,1.10824764,59810.0,59809.0,0.58384442]
[1723942915702,1.10824764,59810.0,59809.0,0.00664442]
[1723942919813,1.27736004,59810.0,59809.0,0.00664442]
[1723942920046,1.10824764,59810.0,59809.0,0.00664442]
[1723942920250,1.10824764,59810.0,59809.0,0.0009075]
[1723942921736,1.10824764,59810.0,59809.0,0.5822075]
[1723942922161,1.10824764,59810.0,59809.0,0.58794442]
[1723942923300,1.11324764,59810.0,59809.0,0.58894442]
[1723942923497,1.01293064,59810.0,59809.0,0.58894442]
[1723942928633,1.11324764,59810.0,59809.0,0.58894442]
[1723942928835,1.01293064,59810.0,59809.0,0.58894442]
[1723942929237,1.11324764,59810.0,59809.0,0.3870075]
[1723942929677,1.11324764,59810.0,59809.0,0.39276269]
[1723942933622,1.11324764,59810.0,59809.0,0.00766269]
[1723942938580,1.11324764,59810.0,59809.0,0.00065777]
[1723942938925,1.11324764,59810.0,59803.0,0.3758]
[1723942938926,0.875698,59804.0,59803.0,0.3758]
[1723942939286,0.875698,59804.0,59802.0,0.1972075]
[1723942939287,0.251822,59803.0,59802.0,0.0009075]
[1723942939486,0.68493039,59803.0,59802.0,0.0009075]
[1723942939639,0.70793039,59803.0,59802.0,0.0009075]
[1723942942066,0.72193039,59803.0,59802.0,0.5730075]
[1723942942645,0.73593039,59803.0,59802.0,0.5730075]
[1723942943466,0.74993039,59803.0,59802.0,0.5730075]
[1723942943715,0.72193039,59803.0,59802.0,0.5730075]
[1723942943935,0.88780577,59803.0,59802.0,0.5730075]
[1723942944140,0.71842419,59803.0,59802.0,0.5730075]
[1723942944269,0.88779717,59803.0,59802.0,0.5730075]
[1723942945087,0.90180056,59803.0,59802.0,0.5730075]
[1723942945545,0.73242419,59803.0,59802.0,0.5730075]
[1723942945779,0.91579879,59803.0,59802.0,0.5730075]
[1723942946132,0.88779879,59803.0,59802.0,0.5730075]
[1723942946335,0.90179879,59803.0,59802.0,0.5730075]
[1723942947061,0.91579879,59803.0,59802.0,0.5730075]
[1723942948277,0.91579879,59803.0,59802.0,0.57881954]
[1723942948479,0.88779879,59803.0,59802.0,0.57881954]
[1723942948620,0.90179879,59803.0,59802.0,0.57881954]
[1723942949029,0.88779879,59803.0,59802.0,0.57881954]
[1723942949222,0.90179879,59803.0,59802.0,0.57881954]
[1723942949631,0.86751779,59803.0,59802.0,0.57881954]
[1723942949833,0.97541772,59803.0,59802.0,0.57881954]
[1723942950065,0.71214319,59803.0,59802.0,0.57881954]
[1723942950282,0.73799519,59803.0,59802.0,0.57881954]
[1723942950481,0.73899519,59803.0,59802.0,0.57881954]
[1723942951889,0.90839586,59803.0,59802.0,0.57881954]
[1723942952115,0.90839456,59803.0,59802.0,0.57881954]
[1723942952962,0.90840628,59803.0,59802.0,0.57881954]
[1723942953190,0.83932419,59803.0,59802.0,0.57881954]
[1723942953602,1.00874675,59803.0,59802.0,0.57881954]
[1723942954229,1.00874741,59803.0,59802.0,0.57881954]
[1723942954526,1.00874741,59803.0,59802.0,0.38251954]
[1723942954527,0.83932419,59803.0,59802.0,0.38251954]
[1723942954733,0.83932419,59803.0,59802.0,0.0009075]
[1723942957638,1.44942419,59803.0,59802.0,0.0009075]
[1723942957981,1.24992419,59803.0,59802.0,0.0009075]
[1723942958349,0.83932419,59803.0,59802.0,0.0009075]
[1723942960181,0.83932419,59803.0,59802.0,0.00077036]
[1723942960355,0.83912296,59803.0,59802.0,0.00077036]
[1723942961608,0.84249507,59803.0,59802.0,0.00077036]
[1723942961803,0.81449507,59803.0,59802.0,0.00077036]
[1723942962008,0.82849507,59803.0,59802.0,0.00077036]
[1723942962703,0.84249507,59803.0,59802.0,0.00077036]
[1723942963511,0.81449507,59803.0,59802.0,0.00077036]
[1723942963910,0.051168,59799.0,59798.0,0.0009086]
[1723942964112,0.051168,59799.0,59792.0,0.4048]
[1723942964113,0.381516,59794.0,59792.0,0.4048]
[1723942964412,0.83022539,59794.0,59792.0,0.4048]
[1723942964855,1.03091339,59794.0,59792.0,0.4048]
[1723942965250,0.03,59782.0,59780.0,0.0009086]
[1723942965412,0.52929539,59782.0,59780.0,0.0009086]
[1723942965613,0.92965939,59782.0,59780.0,0.0009086]
[1723942965931,1.08016652,59782.0,59781.0,0.5984086]
[1723942966134,0.92965939,59782.0,59781.0,0.5984086]
[1723942966564,0.94265939,59782.0,59781.0,0.5984086]
[1723942966766,0.93065939,59782.0,59781.0,0.5984086]
[1723942967124,0.94465939,59782.0,59781.0,0.5984086]
[1723942967633,0.98129185,59782.0,59781.0,0.5984086]
[1723942969812,0.98029185,59782.0,59781.0,0.5984086]
[1723942970434,1.10556238,59782.0,59781.0,0.5984086]
[1723942970569,0.98029185,59782.0,59781.0,0.5984086]
[1723942971234,0.98029185,59782.0,59781.0,0.59799397]
[1723942972340,1.08049491,59782.0,59781.0,0.59799397]
[1723942972742,0.98759491,59782.0,59781.0,0.59799397]
[1723942972977,1.08049491,59782.0,59781.0,0.59799397]
[1723942974140,0.87992785,59782.0,59781.0,0.59799397]
[1723942977515,0.58702785,59782.0,59781.0,0.59799397]
[1723942977689,0.46366385,59782.0,59781.0,0.59799397]
[1723942978913,0.58702785,59782.0,59781.0,0.59799397]
[1723942981047,0.68739185,59782.0,59781.0,0.59799397]
[1723942981176,0.81364143,59782.0,59781.0,0.00049397]
[1723942981508,0.78129185,59782.0,59781.0,0.00049397]
[1723942981963,0.68839185,59782.0,59781.0,0.00049397]
[1723942982087,0.78029185,59782.0,59781.0,0.57059397]
[1723942982291,0.67339185,59782.0,59781.0,0.57059397]
[1723942982491,0.76629185,59782.0,59781.0,0.57059397]
[1723942982720,0.76629185,59782.0,59781.0,0.00049397]
[1723942982894,0.76729185,59782.0,59781.0,0.38089397]
[1723942983528,0.78129185,59782.0,59781.0,0.38089397]
[1723942983899,0.67339185,59782.0,59781.0,0.38089397]
[1723942984099,0.76629185,59782.0,59781.0,0.38089397]
[1723942984303,0.76729185,59782.0,59781.0,0.38089397]
[1723942985524,0.78129185,59782.0,59781.0,0.38089397]
[1723942985725,0.78029185,59782.0,59781.0,0.38089397]
[1723942986732,0.78029185,59782.0,59781.0,0.00049397]
[1723942987507,0.78129185,59782.0,59781.0,0.00049397]
[1723942988821,0.78129185,59782.0,59781.0,0.61219397]
[1723942989174,0.78129185,59782.0,59781.0,0.41459397]
[1723942989945,0.75129185,59782.0,59781.0,0.41459397]
[1723942990362,0.75129185,59782.0,59781.0,0.00049397]
[1723942990363,0.78129185,59782.0,59781.0,0.00049397]
[1723942991126,0.78129185,59782.0,59781.0,0.41459397]
[1723942991331,0.78029185,59782.0,59781.0,0.41459397]
[1723942992312,0.78129185,59782.0,59781.0,0.41459397]
[1723942993590,0.78129185,59782.0,59781.0,0.41417925]
[1723942993805,0.78029185,59782.0,59781.0,0.41417925]
[1723942994956,0.78129185,59782.0,59781.0,0.41417925]
[1723942995151,0.78029185,59782.0,59781.0,0.41417925]
[1723942998066,0.84735985,59782.0,59781.0,0.41417925]
[1723942998274,0.84818485,59782.0,59781.0,0.41417925]
[1723943003254,0.99866721,59782.0,59781.0,0.41417925]
[1723943003607,0.99866721,59782.0,59781.0,0.60147925]
[1723943003810,0.90576721,59782.0,59781.0,0.60147925]
[1723943004020,0.99866721,59782.0,59781.0,0.60147925]
[1723943005244,0.65492085,59782.0,59781.0,0.6627164]
[1723943005448,0.58785285,59782.0,59781.0,0.60147925]
[1723943005825,0.90657692,59782.0,59781.0,0.60147925]
[1723943006189,0.78111685,59782.0,59781.0,0.60147925]
[1723943006848,0.76711685,59782.0,59781.0,0.60147925]
[1723943008251,0.93168255,59782.0,59781.0,0.60147925]
[1723943008648,0.93076436,59782.0,59781.0,0.60147925]
[1723943008968,0.78019866,59782.0,59781.0,0.60147925]
[1723943009172,0.91776436,59782.0,59781.0,0.60147925]
[1723943009377,0.78119866,59782.0,59781.0,0.60147925]
[1723943009576,0.78019866,59782.0,59781.0,0.60147925]
[1723943009954,0.78119866,59782.0,59781.0,0.60147925]
[1723943010180,0.79519866,59782.0,59781.0,0.60147925]
[1723943010443,0.79519866,59782.0,59781.0,0.41417925]
[1723943011547,0.79519866,59782.0,59781.0,7.925e-05]
[1723943012404,0.79419866,59782.0,59781.0,7.925e-05]
[1723943012636,0.79519866,59782.0,59781.0,7.925e-05]
[1723943014000,0.79519866,59782.0,59781.0,0.37607925]
[1723943014403,0.79419866,59782.0,59781.0,0.37607925]
[1723943014951,0.79419866,59782.0,59781.0,0.56337925]
[1723943017727,0.70129866,59782.0,59781.0,0.56337925]
[1723943018181,0.79419866,59782.0,59781.0,0.56337925]
[1723943019499,0.79519866,59782.0,59781.0,0.56337925]
[1723943020250,0.70129866,59782.0,59781.0,0.56337925]
[1723943020456,0.79419866,59782.0,59781.0,0.56337925]
[1723943024523,0.79519866,59782.0,59781.0,0.56337925]
[1723943028202,0.79519866,59782.0,59781.0,0.56296461]
[1723943028407,0.352281,59781.0,59780.0,0.0009086]
[1723943028604,0.50740239,59781.0,59780.0,0.0009086]
[1723943029004,0.60776839,59781.0,59780.0,0.0009086]
[1723943030489,0.62176839,59781.0,59780.0,0.0009086]
[1723943030730,0.81906839,59781.0,59780.0,0.0009086]
[1723943030939,1.37969711,59781.0,59780.0,0.0009086]
[1723943031137,1.21006839,59781.0,59780.0,0.0009086]
[1723943032315,1.31043439,59781.0,59780.0,0.0009086]
[1723943032511,1.31043439,59781.0,59771.0,0.1885]
[1723943032512,1.31043439,59781.0,59771.0,0.0002]
[1723943032513,0.381571,59772.0,59771.0,0.0002]
[1723943032713,0.381571,59772.0,59760.0,0.416]
[1723943032714,0.480985,59764.0,59760.0,0.51177509]
[1723943032916,0.90007767,59764.0,59760.0,0.51177509]
[1723943033125,0.90007767,59764.0,59759.0,0.6043]
[1723943033126,0.92979439,59764.0,59759.0,0.6043]
[1723943033330,0.92979439,59764.0,59756.0,0.1883]
[1723943033331,1.25474787,59764.0,59756.0,0.1883]
[1723943033529,1.25474787,59764.0,59757.0,0.416]
[1723943033732,1.05520368,59764.0,59757.0,0.416]
[1723943034136,1.05520368,59764.0,59763.0,0.004075]
[1723943035118,1.06920368,59764.0,59763.0,0.004075]
[1723943035273,1.66020368,59764.0,59763.0,0.004075]
[1723943035702,1.67420368,59764.0,59763.0,0.004075]
[1723943036654,1.38300368,59764.0,59763.0,0.004075]
[1723943036850,1.08590368,59764.0,59763.0,0.004075]
[1723943037096,1.05790368,59764.0,59763.0,0.004075]
[1723943037805,1.20832437,59764.0,59763.0,0.004075]
[1723943038252,1.05790368,59764.0,59763.0,0.004075]
[1723943038451,1.07190368,59764.0,59763.0,0.004075]
[1723943038646,1.08222997,59764.0,59763.0,0.004075]
[1723943039211,1.08122997,59764.0,59763.0,0.004075]
[1723943039410,0.98083597,59764.0,59763.0,0.004075]
[1723943039638,0.98183597,59764.0,59763.0,0.004075]
[1723943041312,0.98083597,59764.0,59763.0,0.004075]
[1723943043364,1.04792597,59764.0,59763.0,0.004075]
[1723943043988,0.95457016,59764.0,59763.0,0.185275]
[1723943044191,0.66408616,59764.0,59763.0,0.5999025]
[1723943044398,0.46408616,59764.0,59763.0,0.5999025]
[1723943044803,0.43196477,59764.0,59763.0,0.5999025]
[1723943045198,0.43196477,59764.0,59763.0,0.583375]
[1723943045311,0.32124448,59764.0,59763.0,0.583375]
[1723943045717,0.30724448,59764.0,59763.0,0.583375]
[1723943046152,0.32124448,59764.0,59763.0,0.583375]
[1723943046764,0.35824448,59764.0,59763.0,0.583375]
[1723943046967,0.45824448,59764.0,59763.0,0.583375]
[1723943047368,0.55863848,59764.0,59763.0,0.581375]
[1723943047569,0.45824448,59764.0,59763.0,0.581375]
[1723943048008,0.43024448,59764.0,59763.0,0.581375]
[1723943048441,0.43724448,59764.0,59763.0,0.583375]
[1723943049649,0.44724448,59764.0,59763.0,0.583375]
[1723943051845,0.44724448,59764.0,59763.0,0.6419125]
[1723943052683,0.42424448,59764.0,59763.0,0.6419125]
[1723943052895,0.04325948,59764.0,59763.0,0.7368125]
[1723943053097,0.067197,59764.0,59763.0,0.7368125]
[1723943053834,0.017,59764.0,59763.0,0.7368125]
[1723943054241,0.1015,59769.0,59768.0,0.004]
[1723943054448,0.151693,59769.0,59768.0,0.6742]
[1723943054718,0.051693,59769.0,59768.0,0.6742]
[1723943054927,0.152079,59769.0,59768.0,0.6742]
[1723943055128,0.252079,59769.0,59768.0,0.6742]
[1723943055258,0.252079,59769.0,59768.0,0.74162]
[1723943057409,0.0015,59769.0,59768.0,0.74162]
[1723943057612,0.0065,59769.0,59768.0,0.74162]
[1723943058568,0.056693,59769.0,59768.0,0.74162]
[1723943059838,0.0065,59769.0,59768.0,0.74162]
[1723943062035,0.056693,59769.0,59768.0,0.74162]
[1723943063576,0.056693,59769.0,59768.0,0.64872]
[1723943065763,0.056693,59769.0,59764.0,0.3794]
[1723943065764,0.381375,59765.0,59764.0,0.3794]
[1723943065944,0.381375,59765.0,59763.0,0.199575]
[1723943065945,0.150591,59764.0,59763.0,0.004075]
[1723943066151,0.451379,59764.0,59763.0,0.004075]
[1723943066407,0.474379,59764.0,59763.0,0.004075]
[1723943066987,0.88048228,59764.0,59763.0,0.004075]
[1723943067165,0.98087628,59764.0,59763.0,0.004075]
[1723943067364,1.16897628,59764.0,59763.0,0.004075]
[1723943068163,1.17997628,59764.0,59763.0,0.005075]
[1723943068797,1.19097628,59764.0,59763.0,0.006075]
[1723943069145,1.19097628,59764.0,59763.0,0.004075]
[1723943069146,1.26087628,59764.0,59763.0,0.004075]
[1723943069350,1.27387628,59764.0,59763.0,0.004075]
[1723943069925,1.41377628,59764.0,59763.0,0.004075]
[1723943071721,1.40077628,59764.0,59763.0,0.004075]
[1723943072124,1.41277628,59764.0,59763.0,0.004075]
[1723943072773,1.40077628,59764.0,59763.0,0.004075]
[1723943073184,1.41477628,59764.0,59763.0,0.004075]
[1723943074640,1.41577628,59764.0,59763.0,0.004075]
[1723943074873,1.40177628,59764.0,59763.0,0.004075]
[1723943075358,1.41577628,59764.0,59763.0,0.004075]
[1723943075992,1.42977628,59764.0,59763.0,0.004075]
[1723943076129,1.41577628,59764.0,59763.0,0.004075]
[1723943076533,1.42977628,59764.0,59763.0,0.004075]
[1723943077382,1.49686528,59764.0,59763.0,0.004075]
[1723943077737,1.49586528,59764.0,59763.0,0.004075]
[1723943078133,1.49686528,59764.0,59763.0,0.004075]
[1723943078326,1.59693871,59764.0,59763.0,0.004075]
[1723943078783,1.56893871,59764.0,59763.0,0.004075]
[1723943079144,1.60795707,59764.0,59763.0,0.004075]
[1723943079341,1.48286528,59764.0,59763.0,0.004075]
[1723943079542,1.60795707,59764.0,59763.0,0.004075]
[1723943079748,1.59395707,59764.0,59763.0,0.004075]
[1723943079956,1.56893608,59764.0,59763.0,0.004075]
[1723943080158,1.48286528,59764.0,59763.0,0.004075]
[1723943080763,1.48369128,59764.0,59763.0,0.004075]
[1723943081921,1.46969128,59764.0,59763.0,0.004075]
[1723943082391,1.48369128,59764.0,59763.0,0.004075]
[1723943083033,1.49769128,59764.0,59763.0,0.004075]
[1723943084409,1.62176879,59764.0,59763.0,0.004075]
[1723943087137,1.62176221,59764.0,59763.0,0.004075]
[1723943087652,1.49669128,59764.0,59763.0,0.004075]
[1723943088738,1.49769128,59764.0,59763.0,0.004075]
[1723943089448,1.49669128,59764.0,59763.0,0.004075]
[1723943089852,1.35699128,59764.0,59763.0,0.004075]
[1723943090732,1.35799128,59764.0,59763.0,0.004075]
[1723943091360,0.7969372,59764.0,59763.0,0.004075]
[1723943091714,0.76199128,59764.0,59763.0,0.004075]
[1723943091911,0.85101936,59764.0,59763.0,0.004075]
[1723943092054,0.85201936,59764.0,59763.0,0.004075]
[1723943092255,0.87702945,59764.0,59763.0,0.004075]
[1723943092468,0.77699128,59764.0,59763.0,0.004075]
[1723943093397,1.62734171,59764.0,59763.0,0.004075]
[1723943093595,0.774967,59752.0,59749.0,0.009075]
[1723943093799,0.92517028,59752.0,59749.0,0.009075]
[1723943094752,0.92417028,59752.0,59749.0,0.009075]
[1723943095203,0.92417028,59752.0,59749.0,0.391175]
[1723943095617,0.93817028,59752.0,59749.0,0.391175]
[1723943096379,0.92417028,59752.0,59749.0,0.391175]
[1723943096552,0.93817028,59752.0,59749.0,0.391175]
[1723943097886,0.92417028,59752.0,59749.0,0.391175]
[1723943098095,0.93817028,59752.0,59749.0,0.391175]
[1723943098463,0.93917028,59752.0,59749.0,0.009075]
[1723943098869,0.95317028,59752.0,59749.0,0.009075]
[1723943099079,0.93817028,59752.0,59749.0,0.009075]
[1723943099493,0.85907028,59752.0,59749.0,0.009075]
[1723943099690,0.95217028,59752.0,59751.0,0.5691]
[1723943099911,0.95217028,59752.0,59751.0,0.6269285]
[1723943099912,0.83107028,59752.0,59751.0,0.6269285]
[1723943100112,0.92417028,59752.0,59751.0,0.6269285]
[1723943100324,0.82375528,59752.0,59751.0,0.5691]
[1723943100535,0.50765528,59752.0,59751.0,0.5691]
[1723943100743,0.61125381,59752.0,59751.0,0.5691]
[1723943101847,0.62525381,59752.0,59751.0,0.5691]
[1723943102054,0.55515381,59752.0,59751.0,0.5691]
[1723943102588,0.56915381,59752.0,59751.0,0.5711]
[1723943102791,0.56915381,59752.0,59751.0,0.5691]
[1723943103662,0.56915381,59752.0,59751.0,0.5711]
[1723943104454,0.56915381,59752.0,59751.0,0.6302371]
[1723943105046,0.43524028,59752.0,59751.0,0.6302371]
[1723943105691,0.43524028,59752.0,59751.0,0.5720086]
[1723943105873,0.43524028,59752.0,59751.0,0.5700086]
[1723943105874,0.40524028,59752.0,59751.0,0.5700086]
[1723943106017,0.43524028,59752.0,59751.0,0.5700086]
[1723943106220,0.43524028,59752.0,59751.0,0.5720086]
[1723943106679,0.43524028,59752.0,59751.0,0.5700086]
[1723943106887,0.43524028,59752.0,59751.0,0.0011086]
[1723943107097,0.55865528,59752.0,59751.0,0.0011086]
[1723943108258,0.55865528,59752.0,59751.0,0.45918796]
[1723943108999,1.45577028,59752.0,59751.0,0.0011086]
[1723943109448,1.05887028,59752.0,59751.0,0.0011086]
[1723943109830,0.85907028,59752.0,59751.0,0.0011086]
[1723943110404,0.9342793,59752.0,59751.0,0.0011086]
[1723943110610,0.95934897,59752.0,59751.0,0.0011086]
[1723943111097,0.96842397,59752.0,59751.0,0.0011086]
[1723943111498,0.86814528,59752.0,59751.0,0.0011086]
[1723943112210,0.76773028,59752.0,59751.0,0.5936086]
[1723943112415,0.56773028,59752.0,59751.0,0.65388796]
[1723943112868,0.66818049,59752.0,59751.0,0.65388796]
[1723943113078,0.66818013,59752.0,59751.0,0.65388796]
[1723943113464,0.56773028,59752.0,59751.0,0.65388796]
[1723943113922,0.66818819,59752.0,59751.0,0.65388796]
[1723943114095,0.66818801,59752.0,59751.0,0.65388796]
[1723943114303,0.56773028,59752.0,59751.0,0.65388796]
[1723943114716,0.56773028,59752.0,59751.0,0.5936086]
[1723943114717,0.66818801,59752.0,59751.0,0.5936086]
[1723943114925,0.76773028,59752.0,59751.0,0.0011086]
[1723943115122,0.89329259,59752.0,59751.0,0.0011086]
[1723943115537,0.76773028,59752.0,59751.0,0.0011086]
[1723943115752,0.893317,59752.0,59751.0,0.0011086]
[1723943116159,0.76773028,59752.0,59751.0,0.0011086]
[1723943116363,0.86914528,59752.0,59751.0,0.0011086]
[1723943116785,1.27494528,59752.0,59751.0,0.0011086]
[1723943117394,1.27394528,59752.0,59751.0,0.0011086]
[1723943118358,1.30121301,59752.0,59751.0,0.0011086]
[1723943118765,1.27321301,59752.0,59751.0,0.0011086]
[1723943119198,1.46351301,59752.0,59751.0,0.0011086]
[1723943119371,1.47751301,59752.0,59751.0,0.0011086]
[1723943119799,1.47651301,59752.0,59751.0,0.0011086]
[1723943120001,1.49051301,59752.0,59751.0,0.0011086]
[1723943120204,1.47651301,59752.0,59751.0,0.0011086]
[1723943120403,1.47751301,59752.0,59751.0,0.0011086]
[1723943121147,1.57792801,59752.0,59751.0,0.0011086]
[1723943121481,1.47651301,59752.0,59751.0,0.0011086]
[1723943121682,1.49051301,59752.0,59751.0,0.0011086]
[1723943121884,1.47651301,59752.0,59751.0,0.0011086]
[1723943122294,1.59092801,59752.0,59751.0,0.0011086]
[1723943122519,1.57792801,59752.0,59751.0,0.0011086]
[1723943122721,1.64604418,59752.0,59751.0,0.0011086]
[1723943122936,1.47651301,59752.0,59751.0,0.0011086]
[1723943123533,0.89441301,59752.0,59751.0,0.0011086]
[1723943124094,1.58922801,59752.0,59751.0,0.0011086]
[1723943124303,1.48881301,59752.0,59751.0,0.0011086]
[1723943124710,1.58922801,59752.0,59751.0,0.0011086]
[1723943124844,1.46081301,59752.0,59751.0,0.0011086]
[1723943125044,1.45981301,59752.0,59751.0,0.0011086]
[1723943125290,1.57522801,59752.0,59751.0,0.0011086]
[1723943126513,1.47481301,59752.0,59751.0,0.0011086]
[1723943127482,1.57522801,59752.0,59751.0,0.0011086]
[1723943127880,1.47481301,59752.0,59751.0,0.0011086]
[1723943128951,1.47381301,59752.0,59751.0,0.0011086]
[1723943129370,1.47463801,59752.0,59751.0,0.0011086]
[1723943129652,1.47563801,59752.0,59751.0,0.0011086]
[1723943131945,1.56883801,59752.0,59751.0,0.0011086]
[1723943132990,1.55483801,59752.0,59751.0,0.0011086]
[1723943133405,1.56883801,59752.0,59751.0,0.0011086]
[1723943135911,1.83870598,59752.0,59751.0,0.0011086]
[1723943136316,1.83870598,59752.0,59749.0,0.009075]
[1723943136317,0.001,59750.0,59749.0,0.009075]
[1723943136502,0.57106881,59745.0,59744.0,0.0089955]
[1723943136704,1.19532409,59745.0,59744.0,0.0089955]
[1723943136894,1.68864648,59745.0,59744.0,0.0089955]
[1723943137096,1.61960209,59745.0,59744.0,0.0089955]
[1723943138025,1.75950209,59745.0,59744.0,0.0089955]
[1723943138437,1.92891846,59745.0,59744.0,0.0089955]
[1723943138850,1.94291846,59745.0,59744.0,0.0089955]
[1723943139336,1.94289303,59745.0,59744.0,0.0089955]
[1723943139472,1.95689303,59745.0,59744.0,0.0089955]
[1723943139921,1.96720009,59745.0,59744.0,0.0089955]
[1723943140356,1.96720091,59745.0,59744.0,0.0089955]
[1723943140526,1.79780915,59745.0,59744.0,0.0089955]
[1723943140930,1.96716945,59745.0,59744.0,0.0089955]
[1723943141734,1.93916945,59745.0,59744.0,0.0089955]
[1723943142111,1.95316945,59745.0,59744.0,0.009903]
[1723943143124,1.78380915,59745.0,59744.0,0.009903]
[1723943145938,1.76980915,59745.0,59744.0,0.009903]
[1723943146351,1.78380915,59745.0,59744.0,0.009903]
[1723943147291,1.78672773,59745.0,59744.0,0.009903]
[1723943150887,1.78672773,59745.0,59744.0,0.00858368]
[1723943151055,1.77272773,59745.0,59744.0,0.00858368]
[1723943151421,1.78672773,59745.0,59744.0,0.00858368]
[1723943152003,1.80072773,59745.0,59744.0,0.00858368]
[1723943152747,1.77272773,59745.0,59744.0,0.00858368]
[1723943153161,1.78672773,59745.0,59744.0,0.00858368]
[1723943155178,1.78672773,59745.0,59744.0,0.01847431]
[1723943156613,1.19332773,59745.0,59744.0,0.01847431]
[1723943157613,1.06890173,59745.0,59744.0,0.61977431]
[1723943157959,0.92708315,59745.0,59744.0,0.61977431]
[1723943158525,0.83288315,59745.0,59744.0,0.61977431]
[1723943158725,0.92608315,59745.0,59744.0,0.61977431]
[1723943158932,1.08551593,59745.0,59744.0,0.61977431]
[1723943159117,0.93508315,59745.0,59744.0,0.60988368]
[1723943159311,0.94908315,59745.0,59744.0,0.60988368]
[1723943159536,0.94908315,59745.0,59744.0,0.61979249]
[1723943160492,1.09951593,59745.0,59744.0,0.61979249]
[1723943160614,1.09951593,59745.0,59744.0,0.01849249]
[1723943160852,0.94908315,59745.0,59744.0,0.00858368]
[1723943161271,0.94908315,59745.0,59744.0,0.01848295]
[1723943161480,0.94908315,59745.0,59744.0,0.41308368]
[1723943161682,0.95008315,59745.0,59744.0,0.01848295]
[1723943161908,0.94908315,59745.0,59744.0,0.01848295]
[1723943162109,0.94908315,59745.0,59744.0,0.21528295]
[1723943162333,0.85588315,59745.0,59744.0,0.61978295]
[1723943162538,0.94908315,59745.0,59744.0,0.61978295]
[1723943164177,0.94908315,59745.0,59744.0,0.60988368]
[1723943164364,0.94908315,59745.0,59744.0,0.61978357]
[1723943167925,0.95008315,59745.0,59744.0,0.61978357]
[1723943168144,0.94908315,59745.0,59744.0,0.61978357]
[1723943170535,1.01619615,59745.0,59744.0,0.61978357]
[1723943171379,1.1856498,59745.0,59744.0,0.61978357]
[1723943174120,1.1866498,59745.0,59744.0,0.61978357]
[1723943175138,1.01719615,59745.0,59744.0,0.61978357]
[1723943175470,1.01719615,59745.0,59744.0,0.42298357]
[1723943177430,1.01802115,59745.0,59744.0,0.42298357]
[1723943178345,1.01802115,59745.0,59744.0,0.01848357]
[1723943178544,1.01702115,59745.0,59744.0,0.01848357]
[1723943178904,0.92482115,59745.0,59744.0,0.59628357]
[1723943179120,1.01802115,59745.0,59744.0,0.59628357]
[1723943179328,1.01802115,59745.0,59744.0,0.40308357]
[1723943179530,1.01802115,59745.0,59744.0,0.01848357]
[1723943180811,1.01702115,59745.0,59744.0,0.01848357]
[1723943181011,0.92382115,59745.0,59744.0,0.01848357]
[1723943181215,1.01702115,59745.0,59744.0,0.01848357]
[1723943182523,1.01702115,59745.0,59744.0,0.40308357]
[1723943182926,1.01702115,59745.0,59744.0,0.59628357]
[1723943184504,1.01702115,59745.0,59744.0,0.01848357]
[1723943184851,1.01802115,59745.0,59744.0,0.00858368]
[1723943185087,1.01802115,59745.0,59744.0,0.01847596]
[1723943185279,1.01802115,59745.0,59744.0,0.00858368]
[1723943185467,1.01802115,59745.0,59744.0,0.01847596]
[1723943185598,1.01802115,59745.0,59744.0,0.00858368]
[1723943185824,1.01802115,59745.0,59744.0,0.01847596]
[1723943186849,1.01702115,59745.0,59744.0,0.01847596]
[1723943189317,1.01802115,59745.0,59744.0,0.01847596]
[1723943189934,1.01702115,59745.0,59744.0,0.60857596]
[1723943194419,1.01802115,59745.0,59744.0,0.60857596]
[1723943195498,1.11844715,59745.0,59744.0,0.60857596]
[1723943195671,1.01802115,59745.0,59744.0,0.60857596]
[1723943198881,1.11844715,59745.0,59744.0,0.60857596]
[1723943199709,1.11744715,59745.0,59744.0,0.41667596]
[1723943202038,0.92382115,59745.0,59744.0,0.41667596]
[1723943202241,1.01702115,59745.0,59744.0,0.41667596]
[1723943203470,1.11744715,59745.0,59744.0,0.41667596]
[1723943205555,1.01702115,59745.0,59744.0,0.41667596]
[1723943206412,1.11744715,59745.0,59744.0,0.41667596]
[1723943208597,1.11844715,59745.0,59744.0,0.41667596]
[1723943209578,0.92336534,59745.0,59744.0,0.59857596]
[1723943209879,1.01656534,59745.0,59744.0,0.59857596]
[1723943210718,1.00256534,59745.0,59744.0,0.59857596]
[1723943210919,1.01656534,59745.0,59744.0,0.59857596]